{"text_format":"1","workbook":"xlsx","n_sheets":4,"sheets":["Aufmass","Benutzer","Regelpreise","Anmeldedaten"],"not_rendered":{"charts":0,"images":0,"macros":1,"external_links":0,"defined_names":0,"comments":0,"pivot_tables":0},"unopened":[],"bounds":{"document_bytes":16777216,"sheet_cells":100000,"rows_first":2000,"rows_last":500,"rows_between":2000,"halvings":0,"cell_chars":16384,"cell_head_chars":4096},"cells_cut":0,"cells_raw":0,"read":"whole","date_system":"1900"}

{"sheet":"Aufmass","index":0,"n_rows":265,"n_cols":8,"rows_kept":265,"cut":false,"hidden":true,"merged":[[0,1,0,7],[1,6,1,7],[2,0,2,2],[2,3,2,4],[2,5,2,7],[250,0,250,1],[251,0,251,1],[3,1,3,2],[214,0,214,1],[215,0,215,1],[231,0,231,1],[232,0,232,1],[248,0,248,1],[249,0,249,1],[78,0,78,1],[79,0,79,1],[150,0,150,1],[151,0,151,1],[182,0,182,1],[183,0,183,1],[7,0,7,1]]}
[null,{"$f":"\"Abrechnung für Aufmaß des Teilabschnittes: \"&$A$3","v":"Abrechnung für Aufmaß des Teilabschnittes: "}]
[]
[null,null,null,"Bauunternehmen",null,"Constraction S.A"]
["Login",null,null,"Firma","wurstfabrik AG"]
["Datum ","Ort","Benutzer","Hans","Wurst","01.01.10","01.01.20","01.02.10"]
[null,null,"von","bis","Meter","Graben befestigt","Graben  unbefestigt","Montagegruben"]
["Interne Kostenstelle",null,null,null,"m","m","m","Stck."]
["1. Teilaufmaß",null,"(70 Zeilen)"]
[null,null,null,null,{"$f":"SUM(D9-C9)","v":0}]
[null,null,null,null,0]
[null,null,null,null,0]
[null,null,null,null,0]
[null,null,null,null,0]
[null,null,null,null,0]
[null,null,null,null,0]
[null,null,null,null,0]
[null,null,null,null,0]
[null,null,null,null,0]
[null,null,null,null,0]
[null,null,null,null,0]
[null,null,null,null,0]
[null,null,null,null,0]
[null,null,null,null,0]
[null,null,null,null,0]
[null,null,null,null,0]
[null,null,null,null,0]
[null,null,null,null,0]
[null,null,null,null,0]
[null,null,null,null,0]
[null,null,null,null,0]
[null,null,null,null,0]
[null,null,null,null,0]
[null,null,null,null,0]
[null,null,null,null,0]
[null,null,null,null,0]
[null,null,null,null,0]
[null,null,null,null,0]
[null,null,null,null,0]
[null,null,null,null,0]
[null,null,null,null,0]
[null,null,null,null,0]
[null,null,null,null,0]
[null,null,null,null,0]
[null,null,null,null,0]
[null,null,null,null,0]
[null,null,null,null,0]
[null,null,null,null,0]
[null,null,null,null,0]
[null,null,null,null,0]
[null,null,null,null,0]
[null,null,null,null,0]
[null,null,null,null,0]
[null,null,null,null,0]
[null,null,null,null,0]
[null,null,null,null,0]
[null,null,null,null,0]
[null,null,null,null,0]
[null,null,null,null,0]
[null,null,null,null,0]
[null,null,null,null,0]
[null,null,null,null,0]
[null,null,null,null,0]
[null,null,null,null,0]
[null,null,null,null,0]
[null,null,null,null,0]
[null,null,null,null,0]
[null,null,null,null,0]
[null,null,null,null,0]
[null,null,null,null,0]
[null,null,null,null,0]
[null,null,null,null,0]
[null,null,null,null,{"$f":"SUM(D72-C72)","v":0}]
[null,null,null,null,0]
[null,null,null,null,0]
[null,null,null,null,0]
[null,null,null,null,0]
[null,null,null,null,0]
[null,null,null,null,0]
[{"$f":"\"1.Teilaufmaß Summen: \"&MAX(D79:E79)&\" m\"","v":"1.Teilaufmaß Summen: 0 m"},null,{"$f":"MIN(C9:C78)","v":0},{"$f":"MAX(D9:D78)","v":0},{"$f":"SUM(E9:E78)","v":0},0,0,0]
["2. Teilaufmaß",null,"(70 Zeilen)"]
[null,null,null,null,0]
[null,null,null,null,0]
[null,null,null,null,0]
[null,null,null,null,0]
[null,null,null,null,0]
[null,null,null,null,0]
[null,null,null,null,0]
[null,null,null,null,0]
[null,null,null,null,0]
[null,null,null,null,0]
[null,null,null,null,0]
[null,null,null,null,0]
[null,null,null,null,0]
[null,null,null,null,0]
[null,null,null,null,0]
[null,null,null,null,0]
[null,null,null,null,0]
[null,null,null,null,0]
[null,null,null,null,0]
[null,null,null,null,0]
[null,null,null,null,0]
[null,null,null,null,0]
[null,null,null,null,0]
[null,null,null,null,0]
[null,null,null,null,0]
[null,null,null,null,0]
[null,null,null,null,0]
[null,null,null,null,0]
[null,null,null,null,0]
[null,null,null,null,0]
[null,null,null,null,0]
[null,null,null,null,0]
[null,null,null,null,0]
[null,null,null,null,0]
[null,null,null,null,0]
[null,null,null,null,0]
[null,null,null,null,0]
[null,null,null,null,0]
[null,null,null,null,0]
[null,null,null,null,0]
[null,null,null,null,0]
[null,null,null,null,0]
[null,null,null,null,0]
[null,null,null,null,0]
[null,null,null,null,0]
[null,null,null,null,0]
[null,null,null,null,0]
[null,null,null,null,0]
[null,null,null,null,0]
[null,null,null,null,0]
[null,null,null,null,0]
[null,null,null,null,0]
[null,null,null,null,0]
[null,null,null,null,0]
[null,null,null,null,{"$f":"SUM(D135-C135)","v":0}]
[null,null,null,null,0]
[null,null,null,null,0]
[null,null,null,null,0]
[null,null,null,null,0]
[null,null,null,null,0]
[null,null,null,null,0]
[null,null,null,null,0]
[null,null,null,null,0]
[null,null,null,null,0]
[null,null,null,null,0]
[null,null,null,null,0]
[null,null,null,null,0]
[null,null,null,null,0]
[null,null,null,null,0]
[null,null,null,null,0]
[{"$f":"\"2.Teilaufmaß Summen: \"&MAX(D151:E151)&\" m\"","v":"2.Teilaufmaß Summen: 0 m"},null,{"$f":"MIN(C81:C150)","v":0},{"$f":"MAX(D81:D150)","v":0},{"$f":"SUM(E81:E150)","v":0},0,0,0]
["3.Teilaufmaß ",null,"(30 Zeilen)"]
[null,null,null,null,{"$f":"SUM(D153-C153)","v":0}]
[null,null,null,null,0]
[null,null,null,null,0]
[null,null,null,null,0]
[null,null,null,null,0]
[null,null,null,null,0]
[null,null,null,null,0]
[null,null,null,null,0]
[null,null,null,null,0]
[null,null,null,null,0]
[null,null,null,null,0]
[null,null,null,null,0]
[null,null,null,null,0]
[null,null,null,null,0]
[null,null,null,null,0]
[null,null,null,null,0]
[null,null,null,null,0]
[null,null,null,null,0]
[null,null,null,null,0]
[null,null,null,null,0]
[null,null,null,null,0]
[null,null,null,null,0]
[null,null,null,null,0]
[null,null,null,null,0]
[null,null,null,null,0]
[null,null,null,null,0]
[null,null,null,null,0]
[null,null,null,null,0]
[null,null,null,null,0]
[null,null,null,null,0]
[{"$f":"\"3.Teilaufmaß Summen: \"&MAX(D183:E183)&\" m\"","v":"3.Teilaufmaß Summen: 0 m"},null,{"$f":"MIN(C153:C182)","v":0},{"$f":"MAX(D153:D182)","v":0},{"$f":"SUM(E153:E182)","v":0},0,0,0]
["4.Teilaufmaß ",null,"(30 Zeilen)"]
[null,null,null,null,{"$f":"SUM(D185-C185)","v":0}]
[null,null,null,null,{"$f":"SUM(D186-C186)","v":0}]
[null,null,null,null,0]
[null,null,null,null,0]
[null,null,null,null,0]
[null,null,null,null,0]
[null,null,null,null,0]
[null,null,null,null,0]
[null,null,null,null,0]
[null,null,null,null,0]
[null,null,null,null,0]
[null,null,null,null,0]
[null,null,null,null,0]
[null,null,null,null,0]
[null,null,null,null,0]
[null,null,null,null,0]
[null,null,null,null,0]
[null,null,null,null,0]
[null,null,null,null,0]
[null,null,null,null,0]
[null,null,null,null,0]
[null,null,null,null,0]
[null,null,null,null,0]
[null,null,null,null,0]
[null,null,null,null,0]
[null,null,null,null,0]
[null,null,null,null,0]
[null,null,null,null,0]
[null,null,null,null,0]
[null,null,null,null,0]
[{"$f":"\"4.Teilaufmaß Summen: \"&MAX(D215:E215)&\" m\"","v":"4.Teilaufmaß Summen: 0 m"},null,{"$f":"MIN(C185:C214)","v":0},{"$f":"MAX(D185:D214)","v":0},{"$f":"SUM(E185:E214)","v":0},{"$f":"SUM(F185:F214)","v":0},0,0]
["5.Teilaufmaß ",null,"(15 Zeilen)"]
[null,null,null,null,{"$f":"SUM(D217-C217)","v":0}]
[null,null,null,null,0]
[null,null,null,null,0]
[null,null,null,null,0]
[null,null,null,null,0]
[null,null,null,null,0]
[null,null,null,null,0]
[null,null,null,null,0]
[null,null,null,null,0]
[null,null,null,null,0]
[null,null,null,null,0]
[null,null,null,null,0]
[null,null,null,null,0]
[null,null,null,null,0]
[null,null,null,null,0]
[{"$f":"\"5.Teilaufmaß Summen: \"&MAX(D232:E232)&\" m\"","v":"5.Teilaufmaß Summen: 0 m"},null,{"$f":"MIN(C217:C231)","v":0},{"$f":"MAX(D217:D231)","v":0},{"$f":"SUM(E202:E231)","v":0},{"$f":"SUM(F202:F231)","v":0},0,0]
["6.Teilaufmaß ",null,"(15 Zeilen)"]
[null,null,null,null,0]
[null,null,null,null,0]
[null,null,null,null,0]
[null,null,null,null,0]
[null,null,null,null,0]
[null,null,null,null,0]
[null,null,null,null,0]
[null,null,null,null,0]
[null,null,null,null,0]
[null,null,null,null,0]
[null,null,null,null,0]
[null,null,null,null,0]
[null,null,null,null,0]
[null,null,null,null,0]
[null,null,null,null,0]
[{"$f":"\"6.Teilaufmaß Summen: \"&MAX(D249:E249)&\" m\"","v":"6.Teilaufmaß Summen: 0 m"},null,{"$f":"MIN(C234:C248)","v":0},{"$f":"MAX(D219:D248)","v":0},{"$f":"SUM(E219:E248)","v":0},{"$f":"SUM(F219:F248)","v":0},0,0]
[]
[{"$f":"\"Menge gesamt: \"&$A$3","v":"Menge gesamt: "},null,null,null,{"$f":"SUM(E253+E256+E258+E260+E262+E265)","v":0},{"$f":"SUM(F253+F256+F258+F260+F262+F264)","v":0},{"$f":"SUM(G253+G256+G258+G260+G262+G264)","v":0},0]
["Summe gesamt",null,{"$f":"SUM(C254+C257+C259+C261+C263+C265)","v":0},null,null,{"$f":"SUM(F254+F257+F261+F259+F263+F265)","v":0},{"$f":"SUM(G254+G257+G261+G259+G263+G265)","v":0},0]
["Menge 1 AR",null,null,null,{"$f":"SUM(E79)","v":0},{"$f":"SUM(F79)","v":0},0,0]
["Summe 1. AR",null,{"$f":"SUM(F254:CN254)","v":0},null,null,{"$f":"SUM(F253*F$255)","v":0},{"$f":"SUM(G253*G$255)","v":0},0]
["EP ",null,null,null,null,399,499,599]
["Menge 2.AR",null,null,null,{"$f":"SUM(E151)","v":0},{"$f":"SUM(F151)","v":0},0,0]
["Summe 2.AR",null,{"$f":"SUM(F257:CN257)","v":0},null,null,{"$f":"SUM(F151*F255)","v":0},{"$f":"SUM(G151*G255)","v":0},0]
["Menge 3.AR",null,null,null,{"$f":"SUM(E183)","v":0},{"$f":"SUM(F183)","v":0},0,0]
["Summe 3.AR",null,{"$f":"SUM(F259:CN259)","v":0},null,null,{"$f":"SUM(F258*F255)","v":0},0,0]
["Menge 4.AR",null,null,null,{"$f":"SUM(E215)","v":0},{"$f":"SUM(F215)","v":0},0,0]
["Summe 4.AR",null,{"$f":"SUM(F261:CN261)","v":0},null,null,{"$f":"SUM(F260*F255)","v":0},{"$f":"SUM(G260*G255)","v":0},0]
["Menge 5.AR",null,null,null,{"$f":"SUM(E232)","v":0},{"$f":"SUM(F232)","v":0},0,0]
["Summe 5.AR",null,{"$f":"SUM(F263:CN263)","v":0},null,null,{"$f":"SUM(F262*F255)","v":0},{"$f":"SUM(G262*G255)","v":0},0]
["Menge 6.AR",null,null,null,{"$f":"SUM(E249)","v":0},{"$f":"SUM(F249)","v":0},0,0]
["Summe 6.AR",null,{"$f":"SUM(F265:CN265)","v":0},null,null,{"$f":"SUM(F264*F255)","v":0},{"$f":"SUM(G264*G255)","v":0},0]

{"sheet":"Benutzer","index":1,"n_rows":6,"n_cols":3,"rows_kept":6,"cut":false,"hidden":false,"merged":[]}
[]
[]
[null,null,"Name                Passwort"]
[null,null,"NikoLino              1234"]
[null,null,"LinoNiko              4321"]
[null,null,"NikoLetta             2143"]

{"sheet":"Regelpreise","index":2,"n_rows":4,"n_cols":4,"rows_kept":4,"cut":false,"hidden":true,"merged":[]}
["Firma","LV_POS","LV_Text","EP"]
["Kamelle","01.01.10","Graben befestigt",999]
["Kamelle","01.01.20","Graben  unbefestigt",299]
["Kamelle","01.02.10","Montagegruben",649]

{"sheet":"Anmeldedaten","index":3,"n_rows":4,"n_cols":5,"rows_kept":4,"cut":false,"hidden":true,"merged":[]}
["Vorname","Name","Emailadresse","Firma","Passwort"]
["Niko","Lino","nikolino@test.de","Constraction S.A",1234]
["Lino","Niko","Linoniko@test,de","Sausage Factory S.A",4321]
["Niko","Letta","Nikoleta@test.de","Elegant Chic S.A",2143]